bitfinex/quotes_BTCUSD_20250529
["timestamp","ask_amount","ask_price","bid_price","bid_amount"]
[1748523626809,6.9016261,108430.0,108420.0,0.5695983]
[1748523627043,6.91038604,108430.0,108420.0,0.5695983]
[1748523629828,6.50771696,108430.0,108420.0,0.54797652]
[1748523630048,6.52232243,108430.0,108420.0,0.54797652]
[1748523630277,6.45906221,108430.0,108420.0,0.54797652]
[1748523630526,6.52231488,108430.0,108420.0,0.54797652]
[1748523630748,6.52231471,108430.0,108420.0,0.54797652]
[1748523630970,6.52231872,108430.0,108420.0,0.54797652]
[1748523632115,6.52223872,108430.0,108420.0,0.54797652]
[1748523633042,6.50763325,108430.0,108420.0,0.54797652]
[1748523633655,6.46863325,108430.0,108420.0,0.54797652]
[1748523633880,6.48324662,108430.0,108420.0,0.25915152]
[1748523635379,6.88172662,108430.0,108420.0,0.25915152]
[1748523635612,6.86711325,108430.0,108420.0,0.25915152]
[1748523638949,6.45767325,108430.0,108420.0,0.25915152]
[1748523639166,6.86683325,108430.0,108420.0,0.25915152]
[1748523639625,6.86688134,108430.0,108420.0,0.25915152]
[1748523639850,6.45772134,108430.0,108420.0,0.25915152]
[1748523640110,6.86684134,108430.0,108420.0,0.25915152]
[1748523640563,6.14772134,108430.0,108420.0,0.25915152]
[1748523640800,6.14772134,108430.0,108420.0,0.30755152]
[1748523640801,0.89503837,108430.0,108420.0,0.30755152]
[1748523641023,1.21721269,108430.0,108420.0,0.30755152]
[1748523641252,1.57175354,108430.0,108420.0,0.30755152]
[1748523641477,0.82267354,108430.0,108420.0,0.30755152]
[1748523641711,1.22694605,108430.0,108420.0,0.30755152]
[1748523641936,1.56694605,108430.0,108420.0,0.30755152]
[1748523642599,1.56695351,108430.0,108420.0,0.30755152]
[1748523643236,1.56687351,108430.0,108420.0,0.30755152]
[1748523643903,1.61555373,108430.0,108420.0,0.30755152]
[1748523644792,1.63020606,108430.0,108420.0,0.30755152]
[1748523645945,1.63004606,108430.0,108420.0,0.30755152]
[1748523647797,1.58225382,108430.0,108420.0,0.30755152]
[1748523648012,1.52770951,108430.0,108420.0,0.30755152]
[1748523648219,1.59107912,108430.0,108420.0,0.30755152]
[1748523649764,1.59087912,108430.0,108420.0,0.30755152]
[1748523650008,1.52750951,108430.0,108420.0,0.30755152]
[1748523650462,1.11886951,108430.0,108420.0,0.30755152]
[1748523650685,1.17038951,108430.0,108420.0,0.30755152]
[1748523650906,1.47746951,108430.0,108420.0,0.30755152]
[1748523651354,1.46746951,108430.0,108420.0,0.30655152]
[1748523651804,1.47346951,108430.0,108420.0,0.30655152]
[1748523652242,1.4644675,108430.0,108420.0,0.30555152]
[1748523652675,1.53488335,108430.0,108420.0,0.30655152]
[1748523652890,1.4714675,108430.0,108420.0,0.30655152]
[1748523653814,1.53488884,108430.0,108420.0,0.30655152]
[1748523654984,1.49588884,108430.0,108420.0,0.30655152]
[1748523656566,1.49591874,108430.0,108420.0,0.30655152]
[1748523660687,1.49591417,108430.0,108420.0,0.30655152]
[1748523660923,1.49591342,108430.0,108420.0,0.30655152]
[1748523661346,1.49591342,108430.0,108420.0,0.28493476]
[1748523662023,1.54796737,108430.0,108420.0,0.28493476]
[1748523663822,1.54796965,108430.0,108420.0,0.28493476]
[1748523664489,1.54796965,108430.0,108420.0,0.23653476]
[1748523664708,1.70248294,108430.0,108420.0,0.23653476]
[1748523664935,1.66540767,108430.0,108420.0,0.23653476]
[1748523665198,1.61540767,108430.0,108420.0,0.23653476]
[1748523666771,1.56789438,108430.0,108420.0,0.23653476]
[1748523667906,1.567902,108430.0,108420.0,0.23653476]
[1748523669111,1.528902,108430.0,108420.0,0.23653476]
[1748523669343,1.55659,108430.0,108420.0,0.23653476]
[1748523669575,1.56581236,108430.0,108420.0,0.23653476]
[1748523670264,1.56581236,108430.0,108420.0,0.19595419]
[1748523670265,6.66332565,108430.0,108420.0,0.19595419]
[1748523670482,6.66332565,108430.0,108420.0,0.18857667]
[1748523670941,6.66332565,108430.0,108420.0,0.18119915]
[1748523671408,6.66332565,108430.0,108420.0,0.17382163]
[1748523671673,6.70470306,108430.0,108420.0,0.17382163]
[1748523672141,6.62350455,108430.0,108420.0,0.17382163]
[1748523672368,6.70471061,108430.0,108420.0,0.1664431]
[1748523672852,6.70471061,108430.0,108420.0,0.15906457]
[1748523673323,6.70471061,108430.0,108420.0,0.15168604]
[1748523673542,6.70471061,108430.0,108420.0,0.14430751]
[1748523673998,6.70471061,108430.0,108420.0,0.13692898]
[1748523674435,6.75471061,108430.0,108420.0,0.10175239]
[1748523674660,6.70471061,108430.0,108420.0,0.10175239]
[1748523674885,6.6807736,108430.0,108420.0,0.09437386]
[1748523675368,6.6807736,108430.0,108420.0,0.08699533]
[1748523675581,6.6807736,108430.0,108420.0,0.0503168]
[1748523675798,6.7307736,108430.0,108420.0,0.0503168]
[1748523676015,6.65719732,108430.0,108420.0,0.04293827]
[1748523676462,6.57599126,108430.0,108420.0,0.03555974]
[1748523676735,6.65721185,108430.0,108420.0,0.03555974]
[1748523677203,6.24861185,108430.0,108420.0,0.03555974]
[1748523677432,6.62455394,108430.0,108420.0,0.03555974]
[1748523677653,1.50706334,108430.0,108420.0,0.03555974]
[1748523678329,1.55706334,108430.0,108420.0,0.03555974]
[1748523678557,1.58746334,108430.0,108420.0,0.03555974]
[1748523679525,1.61776334,108430.0,108420.0,0.03555974]
[1748523680836,1.61777103,108430.0,108420.0,0.03555974]
[1748523681051,1.55707103,108430.0,108420.0,0.03555974]
[1748523681268,1.55707103,108430.0,108420.0,0.01394082]
[1748523681495,1.24103103,108430.0,108420.0,0.04714082]
[1748523681715,1.17649018,108430.0,108420.0,0.07834082]
[1748523681944,1.09023103,108430.0,108420.0,0.07834082]
[1748523682166,0.85114406,108430.0,108420.0,0.07834082]
[1748523682381,1.17156491,108430.0,108420.0,0.07834082]
[1748523682598,1.20402112,108430.0,108420.0,0.07834082]
[1748523682826,1.51156491,108430.0,108420.0,0.07834082]
[1748523683734,1.10488491,108430.0,108420.0,0.07834082]
[1748523683957,1.48379691,108430.0,108420.0,0.07834082]
[1748523684175,1.48375691,108430.0,108420.0,0.07834082]
[1748523685089,1.47496621,108430.0,108420.0,0.07834082]
[1748523685308,1.47420621,108430.0,108420.0,0.07834082]
[1748523685521,1.48299937,108430.0,108420.0,0.07834082]
[1748523685737,1.07719937,108430.0,108420.0,0.07834082]
[1748523685947,1.46834549,108430.0,108420.0,0.07834082]
[1748523686385,1.48300042,108430.0,108420.0,0.07834082]
[1748523688126,1.17728042,108430.0,108420.0,0.07834082]
[1748523688356,1.48288042,108430.0,108420.0,0.07834082]
[1748523688795,1.17728042,108430.0,108420.0,0.07834082]
[1748523689021,1.48289328,108430.0,108420.0,0.07834082]
[1748523689242,1.17729328,108430.0,108420.0,0.07834082]
[1748523689458,1.51531617,108430.0,108420.0,0.07834082]
[1748523690141,1.09513532,108430.0,108420.0,0.07834082]
[1748523690369,1.50073532,108430.0,108420.0,0.07834082]
[1748523690605,1.10967617,108430.0,108420.0,0.07834082]
[1748523690823,1.51527617,108430.0,108420.0,0.07834082]
[1748523691730,1.52626502,108430.0,108420.0,0.07834082]
[1748523692165,1.52626502,108430.0,108420.0,0.0861749]
[1748523693512,1.52624294,108430.0,108420.0,0.0861749]
[1748523693733,1.52624106,108430.0,108420.0,0.0861749]
[1748523694630,1.52624106,108430.0,108420.0,0.07834082]
[1748523696622,1.22072106,108430.0,108420.0,0.07834082]
[1748523696845,1.52600106,108430.0,108420.0,0.07834082]
[1748523697973,1.52599317,108430.0,108420.0,0.07834082]
[1748523701256,1.52599317,108430.0,108420.0,0.05672583]
[1748523701465,1.52599317,108430.0,108420.0,0.06239841]
[1748523702397,1.5259902,108430.0,108420.0,0.06239841]
[1748523704795,1.5150052,108430.0,108420.0,0.02552583]
[1748523705033,0.20823188,108420.0,108410.0,4.18841754]
[1748523705320,0.39720677,108420.0,108410.0,4.18841754]
[1748523705556,0.39720677,108420.0,108410.0,4.28092876]
[1748523706253,0.40120677,108420.0,108410.0,4.28192876]
[1748523706499,0.4100077,108420.0,108410.0,4.28192876]
[1748523706960,0.4042197,108420.0,108410.0,4.28192876]
[1748523707437,0.39322536,108420.0,108410.0,4.28192876]
[1748523708300,0.39322536,108420.0,108410.0,4.18941754]
[1748523710738,0.39323285,108420.0,108410.0,4.18941754]
[1748523714206,0.63438372,108420.0,108410.0,4.18941754]
[1748523714426,0.77187624,108420.0,108410.0,4.18941754]
[1748523714633,0.77187624,108420.0,108410.0,4.15921754]
[1748523714860,0.75722131,108420.0,108410.0,4.15921754]
[1748523715082,0.75722357,108420.0,108410.0,4.25172876]
[1748523715299,0.77190185,108420.0,108410.0,4.25172876]
[1748523716416,0.69789288,108420.0,108410.0,4.28392876]
[1748523716857,0.69789288,108420.0,108410.0,4.19141754]
[1748523717300,0.69793162,108420.0,108410.0,4.19141754]
[1748523721043,0.69796532,108420.0,108410.0,4.19141754]
[1748523721687,0.69704294,108420.0,108410.0,4.19141754]
[1748523722112,0.69705433,108420.0,108410.0,4.19141754]
[1748523722534,0.69705433,108420.0,108410.0,4.28392876]
[1748523722962,0.69706717,108420.0,108410.0,4.28392876]
[1748523723210,0.39242717,108420.0,108410.0,4.28392876]
[1748523723419,0.69674717,108420.0,108410.0,4.28392876]
[1748523724308,0.69670717,108420.0,108410.0,4.28392876]
[1748523724749,0.39242717,108420.0,108410.0,4.28392876]
[1748523724964,0.69670717,108420.0,108410.0,4.28392876]
[1748523725175,0.39242717,108420.0,108410.0,4.19141754]
[1748523725397,0.69666717,108420.0,108410.0,4.19141754]
[1748523726534,0.69670826,108420.0,108410.0,4.19141754]
[1748523730568,0.66419663,108420.0,108410.0,4.19141754]
[1748523730808,0.69672613,108420.0,108410.0,4.19141754]
[1748523731024,0.69672613,108420.0,108410.0,4.28392876]
[1748523734466,0.79588613,108420.0,108410.0,4.28392876]
[1748523735146,0.79588994,108420.0,108410.0,4.28392876]
[1748523735354,0.79588968,108420.0,108410.0,4.28392876]
[1748523736452,0.80690517,108420.0,108410.0,4.28392876]
[1748523737327,0.50294517,108420.0,108410.0,4.28392876]
[1748523737545,0.80678517,108420.0,108410.0,4.28392876]
[1748523737793,1.04734517,108420.0,108410.0,4.28392876]
[1748523738042,1.03266689,108420.0,108410.0,4.28392876]
[1748523739342,1.03266268,108420.0,108410.0,4.28392876]
[1748523739548,0.72882268,108420.0,108410.0,4.28392876]
[1748523739765,1.03258268,108420.0,108410.0,4.28392876]
[1748523740673,1.01800183,108420.0,108410.0,4.28392876]
[1748523740890,0.95436686,108420.0,108410.0,4.28392876]
[1748523741780,0.65064686,108420.0,108410.0,4.28392876]
[1748523742004,0.95432686,108420.0,108410.0,4.28392876]
[1748523742758,0.94331338,108420.0,108410.0,4.28392876]
[1748523743646,0.94330926,108420.0,108410.0,4.28392876]
[1748523747167,0.20857531,108420.0,108410.0,4.3011903]
[1748523747406,0.51205531,108420.0,108410.0,4.3011903]
[1748523747915,0.19976865,108420.0,108410.0,4.30119035]
[1748523748123,0.50505429,108420.0,108410.0,4.30019035]
[1748523748333,0.50605429,108420.0,108410.0,4.28292876]
[1748523748541,0.50805429,108420.0,108410.0,4.30018757]
[1748523748769,0.50705429,108420.0,108410.0,4.30018757]
[1748523749655,0.49824865,108420.0,108410.0,4.30018757]
[1748523749862,0.49624865,108420.0,108410.0,4.30018757]
[1748523750115,0.49824865,108420.0,108410.0,4.30018757]
[1748523750356,0.49917103,108420.0,108410.0,4.30018757]
[1748523750572,0.49817103,108420.0,108410.0,4.30018757]
[1748523751219,0.49817103,108420.0,108410.0,4.30018276]
[1748523753650,0.49817103,108420.0,108410.0,4.30018175]
[1748523755267,0.19469103,108420.0,108410.0,4.30018175]
[1748523755498,0.49789103,108420.0,108410.0,4.30018175]
[1748523756375,0.49789103,108420.0,108410.0,4.30018201]
[1748523756614,0.19469103,108420.0,108410.0,4.30018201]
[1748523756826,0.49785103,108420.0,108410.0,4.28292876]
[1748523757036,0.49785103,108420.0,108410.0,4.30018156]
[1748523757471,0.49785103,108420.0,108410.0,4.30018175]
[1748523758355,0.49785103,108420.0,108410.0,4.30018222]
[1748523758786,0.49785103,108420.0,108410.0,4.28292876]
[1748523759000,0.49785103,108420.0,108410.0,4.30018222]
[1748523759644,0.49785103,108420.0,108410.0,4.30018291]
[1748523761439,0.49785103,108420.0,108410.0,4.30018524]
[1748523761939,0.49785103,108420.0,108410.0,4.30018523]
[1748523762573,0.49765103,108420.0,108410.0,4.30018523]
[1748523762804,0.49765103,108420.0,108410.0,4.30018629]
[1748523763247,0.49765103,108420.0,108410.0,4.30018632]
[1748523763456,0.49765103,108420.0,108410.0,4.30018775]
[1748523763663,0.50645636,108420.0,108410.0,4.30018775]
[1748523764533,0.50645636,108420.0,108410.0,4.30018953]
[1748523764743,0.50645636,108420.0,108410.0,4.28292876]
[1748523764965,0.50646052,108420.0,108410.0,4.28292876]
[1748523765201,0.50646052,108420.0,108410.0,4.30018966]
[1748523765419,0.50646052,108420.0,108410.0,4.28292876]
[1748523765652,0.50646052,108420.0,108410.0,4.30019143]
[1748523766549,0.54350052,108420.0,108410.0,4.3001937]
[1748523766785,0.84634052,108420.0,108410.0,4.30019364]
[1748523770078,0.84634052,108420.0,108410.0,4.30019799]
[1748523770636,0.84634052,108420.0,108410.0,4.30019899]
[1748523772248,0.84634052,108420.0,108410.0,4.28292876]
[1748523772648,0.84634052,108420.0,108410.0,4.30020084]
[1748523772889,0.50634052,108420.0,108410.0,4.30020084]
[1748523773281,0.49753103,108420.0,108410.0,4.3002021]
[1748523773498,0.50634938,108420.0,108410.0,4.3002021]
[1748523773697,0.50634938,108420.0,108410.0,4.30020209]
[1748523774312,0.50634938,108420.0,108410.0,4.31747854]
[1748523775798,0.50634938,108420.0,108410.0,4.30020365]
[1748523776004,0.50634938,108420.0,108410.0,4.31748058]
[1748523776846,0.50634938,108420.0,108410.0,4.31748364]
[1748523777272,0.50634938,108420.0,108410.0,4.31748634]
[1748523778422,0.50634938,108420.0,108410.0,4.31748639]
[1748523778656,0.20350938,108420.0,108410.0,4.31748639]
[1748523778875,0.50594938,108420.0,108410.0,4.31748639]
[1748523779594,0.50590938,108420.0,108410.0,4.31748641]
[1748523780611,0.50590938,108420.0,108410.0,4.31748654]
[1748523781099,0.50591381,108420.0,108410.0,4.31748654]
[1748523781564,1.00246776,108420.0,108410.0,4.25308654]
[1748523781780,1.01349624,108420.0,108410.0,4.25308654]
[1748523782000,1.07714928,108420.0,108410.0,4.25308654]
[1748523782231,1.07714928,108420.0,108410.0,4.23580365]
[1748523784698,1.07714614,108420.0,108410.0,4.23580365]
[1748523785097,1.04414614,108420.0,108410.0,4.23580365]
[1748523785502,0.98048017,108420.0,108410.0,4.23580365]
[1748523785705,0.94798017,108420.0,108410.0,4.23580365]
[1748523785902,0.64558017,108420.0,108410.0,4.23580365]
[1748523786202,0.54350667,108420.0,108410.0,4.3165739]
[1748523786376,0.84570667,108420.0,108410.0,4.3165739]
[1748523786583,0.84570667,108420.0,108410.0,4.31657265]
[1748523786797,0.84570667,108420.0,108410.0,4.31657274]
[1748523787277,0.84570667,108420.0,108410.0,4.31657232]
[1748523787904,0.84566667,108420.0,108410.0,4.3165727]
[1748523788325,0.84566667,108420.0,108410.0,4.31657239]
[1748523788774,0.83685103,108420.0,108410.0,4.29930365]
[1748523788986,0.83685103,108420.0,108410.0,4.31657272]
[1748523789408,0.83685103,108420.0,108410.0,4.31657241]
[1748523790053,0.84567153,108420.0,108410.0,4.31657241]
[1748523791343,0.84567153,108420.0,108410.0,4.31657239]
[1748523792160,0.84567153,108420.0,108410.0,4.29930365]
[1748523792381,0.50551153,108420.0,108410.0,4.31657238]
[1748523792588,0.50551153,108420.0,108410.0,4.31657212]
[1748523792788,0.50551153,108420.0,108410.0,4.31657222]
[1748523793220,0.5055116,108420.0,108410.0,4.31657222]
[1748523794749,0.5055116,108420.0,108410.0,4.29930365]
[1748523794930,0.5055116,108420.0,108410.0,4.31657185]
[1748523795394,0.5055116,108420.0,108410.0,4.3165717]
[1748523795595,0.5055116,108420.0,108410.0,4.29930365]
[1748523795779,0.5055116,108420.0,108410.0,4.31657188]
[1748523796185,0.5055116,108420.0,108410.0,4.31657157]
[1748523797484,0.5055116,108420.0,108410.0,4.29930365]
[1748523797684,0.50535081,108420.0,108410.0,4.31657149]
[1748523798104,0.50535081,108420.0,108410.0,4.31657169]
[1748523798299,0.50535081,108420.0,108410.0,4.29930365]
[1748523798510,0.50535081,108420.0,108410.0,4.31657142]
[1748523799834,0.50535081,108420.0,108410.0,4.31657156]
[1748523801671,0.50535081,108420.0,108410.0,4.31657122]
[1748523801916,0.50535077,108420.0,108410.0,4.31657122]
[1748523802310,0.50535077,108420.0,108410.0,4.31657115]
[1748523802543,0.50535077,108420.0,108410.0,4.31657137]
[1748523802718,0.50535077,108420.0,108410.0,4.33383909]
[1748523803062,0.20351077,108420.0,108410.0,4.33383909]
[1748523803237,0.50519077,108420.0,108410.0,4.33383909]
[1748523803478,0.49637103,108420.0,108410.0,4.33383909]
[1748523804018,0.49637103,108420.0,108410.0,4.33383733]
[1748523805038,0.49637103,108420.0,108410.0,4.33383648]
[1748523805379,0.49637103,108420.0,108410.0,4.33383613]
[1748523806272,0.49637103,108420.0,108410.0,4.33383568]
[1748523806491,0.49637103,108420.0,108410.0,4.33383532]
[1748523806713,0.19469103,108420.0,108410.0,4.31657137]
[1748523806960,0.49625103,108420.0,108410.0,4.33383485]
[1748523807349,0.49525103,108420.0,108410.0,4.33383485]
[1748523807767,0.49525103,108420.0,108410.0,4.33683485]
[1748523807976,0.49525103,108420.0,108410.0,4.79499321]
[1748523808184,0.49525103,108420.0,108410.0,4.77573102]
[1748523808393,0.49525103,108420.0,108410.0,4.7939928]
[1748523808597,0.49525103,108420.0,108410.0,4.7959928]
[1748523808800,0.49521103,108420.0,108410.0,4.7959928]
[1748523809662,0.49517103,108420.0,108410.0,4.79599108]
[1748523810534,0.49517103,108420.0,108410.0,4.79599111]
[1748523810976,0.19369103,108420.0,108410.0,4.79599111]
[1748523811397,0.19369103,108420.0,108410.0,4.88704506]
[1748523811604,0.19369103,108420.0,108410.0,5.28704506]
[1748523811816,0.19369103,108420.0,108410.0,5.28703655]
[1748523812047,0.18445079,108430.0,108410.0,6.28912924]
[1748523812249,0.22134024,108430.0,108420.0,1.95363297]
[1748523812381,0.21211813,108430.0,108420.0,2.06109047]
[1748523812597,0.21211813,108430.0,108420.0,2.1333136]
[1748523812817,0.20289577,108430.0,108420.0,2.5333136]
[1748523813125,0.20289577,108430.0,108420.0,2.54251729]
[1748523813334,0.01844498,108430.0,108420.0,2.55174017]
[1748523813545,0.01844464,108430.0,108420.0,2.55174046]
[1748523813862,0.21211796,108430.0,108420.0,2.55251767]
[1748523814065,0.01844405,108430.0,108420.0,2.05126711]
[1748523814315,0.20287689,108440.0,108430.0,0.0638]
[1748523814508,0.20287689,108440.0,108430.0,0.67244423]
[1748523814934,0.20287689,108440.0,108430.0,1.07244423]
[1748523815142,0.20287689,108440.0,108430.0,1.05521112]
[1748523815352,0.20287689,108440.0,108430.0,1.25687202]
[1748523815564,0.20336968,108440.0,108430.0,1.24888444]
[1748523815771,0.20336968,108440.0,108430.0,1.27531687]
[1748523815984,0.01893488,108440.0,108430.0,1.63375316]
[1748523816129,0.03737765,108440.0,108430.0,1.64375316]
[1748523816345,0.01071371,108440.0,108430.0,1.65075316]
[1748523816549,0.02915631,108440.0,108430.0,1.65075316]
[1748523816734,0.02915622,108440.0,108430.0,1.65075316]
[1748523817167,0.02093488,108440.0,108430.0,2.06558742]
[1748523817376,0.02093488,108440.0,108430.0,1.65774147]
[1748523817590,0.00249279,108440.0,108430.0,2.09324942]
[1748523817794,0.02093471,108440.0,108430.0,2.10779027]
[1748523818182,0.03015588,108440.0,108430.0,2.10779027]
[1748523818388,0.03937714,108440.0,108430.0,2.15777956]
[1748523818830,0.04859848,108440.0,108430.0,2.15777956]
[1748523819292,0.00249279,108440.0,108430.0,2.15777956]
[1748523819524,0.02766088,108450.0,108440.0,0.34993866]
[1748523819760,0.02766088,108450.0,108440.0,1.76393517]
[1748523819949,0.02766088,108450.0,108440.0,2.16207397]
[1748523820194,0.03688154,108450.0,108440.0,2.56207397]
[1748523820411,0.03688154,108450.0,108440.0,1.74638207]
[1748523820620,0.02766088,108450.0,108440.0,2.56207275]
[1748523820827,0.02766088,108450.0,108440.0,2.56207276]
[1748523821256,0.03888146,108450.0,108440.0,2.57807276]
[1748523821708,0.04810212,108450.0,108440.0,2.57806445]
[1748523821926,0.002,108450.0,108440.0,2.57806445]
[1748523822376,0.002,108450.0,108440.0,2.57805601]
[1748523823498,0.002,108450.0,108440.0,2.5780475]
[1748523823709,0.01122007,108450.0,108440.0,2.5780475]
[1748523823927,0.01122007,108450.0,108440.0,2.6057045]
[1748523824588,0.01122007,108450.0,108440.0,2.6055445]
[1748523824589,0.02044039,108450.0,108440.0,2.6055445]
[1748523825746,0.02044039,108450.0,108440.0,2.60553318]
[1748523825957,0.02044031,108450.0,108440.0,2.60553318]
[1748523826165,0.02044031,108450.0,108440.0,2.60553027]
[1748523826377,0.02966072,108450.0,108440.0,2.60553027]
[1748523826631,0.02044031,108450.0,108440.0,2.60552795]
[1748523826851,0.02044039,108450.0,108440.0,1.78983629]
[1748523827063,0.02044039,108450.0,108440.0,2.58841243]
[1748523827270,0.02044039,108450.0,108440.0,2.60552819]
[1748523828840,0.02044039,108450.0,108440.0,2.60552806]
[1748523830059,0.02044039,108450.0,108440.0,2.605528]
[1748523830512,0.20485802,108450.0,108440.0,1.51248339]
[1748523830680,0.20485802,108450.0,108440.0,1.69739122]
[1748523830915,0.20485802,108450.0,108440.0,2.11445885]
[1748523831125,0.20485802,108450.0,108440.0,1.52248339]
[1748523831245,0.20485802,108450.0,108440.0,1.90364782]
[1748523831452,0.20485802,108450.0,108440.0,1.92072802]
[1748523831671,0.20485802,108450.0,108440.0,2.11438348]
[1748523831873,0.19563753,108450.0,108440.0,2.22307102]
[1748523832517,0.19563753,108450.0,108440.0,2.20595082]
[1748523832754,0.19563753,108450.0,108440.0,2.22307975]
[1748523833231,0.19563753,108450.0,108440.0,2.19273975]
[1748523833452,0.19563753,108450.0,108440.0,2.17561082]
[1748523834704,0.19563753,108450.0,108440.0,2.19274304]
[1748523834944,0.19563753,108450.0,108440.0,2.19274709]
[1748523835412,0.19563753,108450.0,108440.0,2.19274926]
[1748523835869,0.19563753,108450.0,108440.0,2.17561082]
[1748523836093,0.19563753,108450.0,108440.0,2.19275445]
[1748523837306,0.19563753,108450.0,108440.0,2.83635586]
[1748523837541,0.19563753,108450.0,108440.0,2.83637214]
[1748523837781,0.18641678,108450.0,108440.0,2.83637416]
[1748523838251,0.18641678,108450.0,108440.0,2.84559576]
[1748523838733,0.18641678,108450.0,108440.0,2.86275649]
[1748523839215,0.01122041,108450.0,108440.0,2.88121031]
[1748523839448,0.002,108450.0,108440.0,2.89575112]
[1748523839685,0.02044031,108450.0,108440.0,2.89575112]
[1748523839916,0.02044031,108450.0,108440.0,2.92340912]
[1748523840170,0.02966072,108450.0,108440.0,2.92340912]
[1748523840409,0.02966072,108450.0,108440.0,2.92342198]
[1748523840654,0.02966063,108450.0,108440.0,2.90623644]
[1748523840885,0.01122007,108450.0,108440.0,2.89578241]
[1748523841330,0.02044039,108450.0,108440.0,2.89578241]
[1748523841768,0.02044031,108450.0,108440.0,2.89579677]
[1748523842211,0.02044031,108450.0,108440.0,2.89579676]
[1748523842431,0.02966072,108450.0,108440.0,2.89579676]
[1748523842669,0.02044031,108450.0,108440.0,2.89580277]
[1748523842876,0.02966072,108450.0,108440.0,2.89580277]
[1748523843092,0.02966063,108450.0,108440.0,2.89580277]
[1748523843540,0.02966063,108450.0,108440.0,3.18990352]
[1748523844197,0.03888104,108450.0,108440.0,3.18990352]
[1748523844670,0.01122007,108450.0,108440.0,2.89580352]
[1748523845091,0.002,108450.0,108440.0,2.89580352]
[1748523845567,0.01122007,108450.0,108440.0,2.89581454]
[1748523845799,0.002,108450.0,108440.0,2.94581452]
[1748523846023,0.18441189,108480.0,108470.0,0.22590173]
[1748523846024,0.21206597,108480.0,108470.0,0.22590173]
[1748523846250,0.2028482,108480.0,108470.0,1.2298338]
[1748523846458,0.20289748,108480.0,108470.0,1.26283089]
[1748523846688,0.20289748,108480.0,108470.0,1.67204985]
[1748523846915,0.20289748,108480.0,108470.0,1.66283089]
[1748523847358,0.20289748,108480.0,108470.0,1.66683082]
[1748523847817,0.20289748,108480.0,108470.0,1.66683359]
[1748523848032,0.20289748,108480.0,108470.0,1.66683349]
[1748523848316,0.19367945,108480.0,108470.0,1.66683133]
[1748523848532,0.19367945,108480.0,108470.0,1.67605044]
[1748523848743,0.19367945,108480.0,108470.0,1.65881228]
[1748523848959,0.19367945,108480.0,108470.0,1.64959332]
[1748523849177,0.19367945,108480.0,108470.0,1.66683173]
[1748523849391,0.19367945,108480.0,108470.0,1.64959332]
[1748523850069,0.19367945,108480.0,108470.0,1.46401026]
[1748523850293,0.19367945,108480.0,108470.0,1.43101026]
[1748523850746,0.19367945,108480.0,108470.0,1.43101052]
[1748523850990,0.19367945,108480.0,108470.0,1.43100983]
[1748523851217,0.19367945,108480.0,108470.0,1.43100982]
[1748523851437,0.19367945,108480.0,108470.0,1.43100826]
[1748523851891,0.19367945,108480.0,108470.0,1.41377237]
[1748523852143,0.19367945,108480.0,108470.0,1.38147237]
[1748523852792,0.19367945,108480.0,108470.0,1.39870772]
[1748523853007,0.19367945,108480.0,108470.0,1.39870731]
[1748523853658,0.19367945,108480.0,108470.0,1.59635514]
[1748523853887,0.19367945,108480.0,108470.0,1.42920731]
[1748523854350,0.19367945,108480.0,108470.0,1.4292058]
[1748523854569,0.19367945,108480.0,108470.0,1.41197237]
[1748523854794,0.19367945,108480.0,108470.0,1.03180579]
[1748523855025,0.19367945,108480.0,108470.0,0.99842519]
[1748523855526,0.25827945,108480.0,108470.0,0.59345924]
[1748523855770,0.25827945,108480.0,108470.0,0.1934596]
[1748523856340,0.25827945,108480.0,108470.0,0.19345972]
[1748523857030,0.25827945,108480.0,108470.0,0.17622642]
[1748523857279,0.25827945,108480.0,108470.0,0.19345971]
[1748523857718,0.25827945,108480.0,108470.0,0.17622642]
[1748523857940,0.25827945,108480.0,108470.0,0.19345971]
[1748523859097,0.25827945,108480.0,108470.0,0.19345848]
[1748523859530,0.25827945,108480.0,108470.0,0.19345931]
[1748523859763,0.25827945,108480.0,108470.0,0.1934583]
[1748523860410,0.25827945,108480.0,108470.0,0.17622642]
[1748523860616,0.25827945,108480.0,108470.0,0.19345919]
[1748523860836,0.25827945,108480.0,108470.0,0.19345865]
[1748523862156,0.25827945,108480.0,108470.0,0.60130475]
[1748523862371,0.25827945,108480.0,108470.0,0.60130467]
[1748523863055,0.25827945,108480.0,108470.0,0.58407237]
[1748523863262,0.25827945,108480.0,108470.0,0.60130559]
[1748523863799,0.25827945,108480.0,108470.0,0.58407237]
[1748523863893,0.25827945,108480.0,108470.0,0.60130605]
[1748523864120,0.25827945,108480.0,108470.0,0.60130604]
[1748523864801,0.25827945,108480.0,108470.0,0.60130687]
[1748523865477,0.22537945,108480.0,108470.0,0.60130939]
[1748523865709,0.22537945,108480.0,108470.0,0.60130932]
[1748523866130,0.22537945,108480.0,108470.0,0.58407237]
[1748523866347,0.22537945,108480.0,108470.0,0.60130938]
[1748523866561,0.22537945,108480.0,108470.0,0.6013101]
[1748523867196,0.22537945,108480.0,108470.0,0.60131241]
[1748523867860,0.22537945,108480.0,108470.0,0.60131586]
[1748523868301,0.19367945,108480.0,108470.0,0.60131587]
[1748523868728,0.19367945,108480.0,108470.0,0.60131868]
[1748523869806,0.22417945,108480.0,108470.0,0.60131868]
[1748523870029,0.22417945,108480.0,108470.0,0.19347405]
[1748523870295,0.22417945,108480.0,108470.0,0.29011405]
[1748523870964,0.19367945,108480.0,108470.0,0.29011405]
[1748523871435,0.19367945,108480.0,108470.0,0.27286642]
[1748523871675,0.19367945,108480.0,108470.0,0.2901158]
[1748523872709,0.19367945,108480.0,108470.0,0.27286642]
[1748523872937,0.19367945,108480.0,108470.0,0.29011702]
[1748523873802,0.19367945,108480.0,108470.0,0.29011845]
[1748523874872,0.19367945,108480.0,108470.0,0.29012016]
[1748523875737,0.19367945,108480.0,108470.0,0.29012216]
[1748523876164,0.19367945,108480.0,108470.0,0.29012217]
[1748523876377,0.19367945,108480.0,108470.0,0.29012256]
[1748523876849,0.19367945,108480.0,108470.0,0.29012292]
[1748523877068,0.19367945,108480.0,108470.0,0.29012287]
[1748523877493,0.19367945,108480.0,108470.0,0.29012467]
[1748523878174,0.19367945,108480.0,108470.0,0.27286642]
[1748523878384,0.22487945,108480.0,108470.0,0.29012621]
[1748523878602,0.25617945,108480.0,108470.0,0.29012621]
[1748523878830,0.25617945,108480.0,108470.0,0.27286642]
[1748523879046,0.25617945,108480.0,108470.0,0.29012698]
[1748523879291,0.22817945,108480.0,108470.0,0.29012698]
[1748523879501,0.22817945,108480.0,108470.0,0.29012712]
[1748523879712,0.19687945,108480.0,108470.0,0.29012712]
[1748523880998,0.19687945,108480.0,108470.0,0.29012714]
[1748523881627,0.19687945,108480.0,108470.0,0.29012885]
[1748523881879,0.19687945,108480.0,108470.0,0.27286642]
[1748523882117,0.19687945,108480.0,108470.0,0.29012855]
[1748523882326,0.19687945,108480.0,108470.0,0.27286642]
[1748523882540,0.19687945,108480.0,108470.0,0.29012874]
[1748523883236,0.19687945,108480.0,108470.0,0.27286642]
[1748523883445,0.19687945,108480.0,108470.0,0.29012874]
[1748523883650,0.19687945,108480.0,108470.0,0.29012891]
[1748523884079,0.19687945,108480.0,108470.0,0.19348891]